fUST/lending_fUST_20251006
["ID","MTS","AMOUNT","RATE_DAILY","PERIOD"]
[389641421,1759764639436,-500.0,0.00019178,2]
[389641423,1759764639448,-500.0,0.00019178,2]
[389641425,1759764639459,-500.0,0.00019178,2]
[389641427,1759764639469,-500.0,0.00019178,2]
[389641429,1759764639480,-500.0,0.00019178,2]
[389641432,1759764639490,-538.55,0.00019178,2]
[389641434,1759764639500,-500.0,0.00019178,2]
[389641436,1759764639511,-500.0,0.00019178,2]
[389641438,1759764639522,-500.0,0.00019178,2]
[389641440,1759764639533,-500.0,0.00019178,2]
[389641442,1759764639543,-916.84,0.00019178,2]
[389641444,1759764639553,-500.0,0.00019178,2]
[389641446,1759764639564,-718.32,0.00019178,2]
[389641449,1759764639575,-460.0,0.00019178,2]
[389641451,1759764639586,-500.0,0.00019178,2]
[389641453,1759764639596,-500.0,0.00019178,2]
[389641455,1759764639607,-500.0,0.00019178,2]
[389641457,1759764639617,-500.0,0.00019178,2]
[389641459,1759764639628,-500.0,0.00019178,2]
[389641462,1759764639638,-500.0,0.00019178,2]
[389641464,1759764639649,-500.0,0.00019178,2]
[389641466,1759764639660,-440.0,0.00019178,2]
[389641468,1759764639671,-500.0,0.00019178,2]
[389641470,1759764639681,-500.0,0.00019178,2]
[389641472,1759764639691,-500.0,0.00019178,2]
[389641474,1759764639703,-614.68,0.00019178,2]
[389641476,1759764639713,-500.0,0.00019178,2]
[389641478,1759764639724,-481.34163755,0.00019178,2]
[389641481,1759764639734,-500.0,0.00019178,2]
[389641483,1759764639745,-500.0,0.00019178,2]
[389641485,1759764639756,-500.0,0.00019178,2]
[389641487,1759764639766,-620.78784053,0.00019178,2]
[389641489,1759764639778,-500.0,0.00019178,2]
[389641491,1759764639788,-501.16,0.00019178,2]
[389641493,1759764639799,-500.0,0.00019178,2]
[389641495,1759764639811,-609.31,0.00019178,2]
[389641498,1759764639823,-500.0,0.00019178,2]
[389641500,1759764639833,-622.86,0.00019178,2]
[389641502,1759764639843,-500.0,0.00019178,2]
[389641504,1759764639854,-500.0,0.00019178,2]
[389641506,1759764639864,-500.0,0.00019178,2]
[389641508,1759764639875,-347.26629121,0.00019178,2]
[389641510,1759764639886,-443.46400399,0.00019178,2]
[389641513,1759764639897,-500.0,0.00019178,2]
[389641515,1759764639907,-558.7,0.00019178,2]
[389641517,1759764639918,-854.27,0.00019178,2]
[389641519,1759764639928,-500.0,0.00019178,2]
[389641521,1759764639940,-490.49642589,0.00019178,2]
[389641523,1759764639952,-500.0,0.00019178,2]
[389641525,1759764639963,-500.0,0.00019178,2]
[389641528,1759764639973,-500.0,0.00019178,2]
[389641530,1759764639984,-1426.89,0.00019178,2]
[389641532,1759764639995,-500.0,0.00019178,2]
[389641534,1759764640006,-500.0,0.00019178,2]
[389641536,1759764640016,-460.0,0.00019178,2]
[389641538,1759764640027,-500.0,0.00019178,2]
[389641541,1759764640038,-552.18841712,0.00019178,2]
[389641543,1759764640048,-500.0,0.00019178,2]
[389641545,1759764640059,-4976.0,0.00019178,2]
[389641547,1759764640070,-507.39,0.00019178,2]
[389641549,1759764640080,-440.0,0.00019178,2]
[389641551,1759764640091,-531.06,0.00019178,2]
[389641553,1759764640102,-611.0,0.00019178,2]
[389641555,1759764640112,-500.0,0.00019178,2]
[389641558,1759764640123,-500.0,0.00019178,2]
[389641560,1759764640133,-500.0,0.00019178,2]
[389641562,1759764640143,-500.0,0.00019178,2]
[389641564,1759764640154,-500.0,0.00019178,2]
[389641566,1759764640165,-454.7460424,0.00019178,2]
[389641568,1759764640176,-13191.71,0.00019178,2]
[389641570,1759764640188,-500.0,0.00019178,2]
[389641572,1759764640201,-500.0,0.00019178,2]
[389641575,1759764640214,-500.0,0.00019178,2]
[389641577,1759764640224,-440.0,0.00019178,2]
[389641579,1759764640238,-500.0,0.00019178,2]
[389641581,1759764640249,-2186.64,0.00019178,2]
[389641583,1759764640259,-500.0,0.00019178,2]
[389641585,1759764640270,-440.0,0.00019178,2]
[389641587,1759764640282,-500.0,0.00019178,2]
[389641590,1759764640292,-500.0,0.00019178,2]
[389641592,1759764640302,-500.0,0.00019178,2]
[389641594,1759764640315,-7743.26,0.00019178,2]
[389641596,1759764640325,-500.0,0.00019178,2]
[389641598,1759764640335,-460.0,0.00019178,2]
[389641600,1759764640345,-4255.53,0.00019178,2]
[389641602,1759764640356,-440.0,0.00019178,2]
[389641605,1759764640366,-225.21980175,0.00019178,2]
[389641607,1759764640377,-500.0,0.00019178,2]
[389641609,1759764640386,-500.0,0.00019178,2]
[389641611,1759764640396,-1394.54,0.00019178,2]
[389641613,1759764640405,-500.0,0.00019178,2]
[389641615,1759764640415,-500.0,0.00019178,2]
[389641617,1759764640425,-500.0,0.00019178,2]
[389641619,1759764640434,-500.0,0.00019178,2]
[389641621,1759764640446,-500.0,0.00019178,2]
[389641650,1759764640699,-500.0,0.00019178,2]
[389641654,1759764640722,-500.0,0.00019178,2]
[389641656,1759764640736,-500.0,0.00019178,2]
[389641658,1759764640746,-500.0,0.00019178,2]
[389641660,1759764640755,-500.0,0.00019178,2]
[389641663,1759764640765,-500.0,0.00019178,2]
[389641665,1759764640774,-224.28246975,0.00019178,2]
[389641666,1759764640783,-500.0,0.00019178,2]
[389641669,1759764640793,-3089.08,0.00019178,2]
[389641671,1759764640802,-1522.32,0.00019178,2]
[389641673,1759764640812,-440.0,0.00019178,2]
[389641675,1759764640821,-440.0,0.00019178,2]
[389641677,1759764640831,-500.0,0.00019178,2]
[389641679,1759764640840,-1925.11,0.00019178,2]
[389641681,1759764640849,-500.0,0.00019178,2]
[389641683,1759764640859,-172.74701761,0.00019178,2]
[389641685,1759764640868,-736.66,0.00019178,2]
[389641687,1759764640876,-568.89,0.00019178,2]
[389641689,1759764640885,-500.0,0.00019178,2]
[389641691,1759764640894,-500.0,0.00019178,2]
[389641692,1759764640903,-500.0,0.00019178,2]
[389641695,1759764640913,-944.66,0.00019178,2]
[389641697,1759764640922,-480.0,0.00019178,2]
[389641699,1759764640931,-500.0,0.00019178,2]
[389641701,1759764640939,-500.0,0.00019178,2]
[389641703,1759764640949,-500.0,0.00019178,2]
[389641705,1759764640959,-440.0,0.00019178,2]
[389641707,1759764640968,-500.0,0.00019178,2]
[389641709,1759764640977,-584.94900917,0.00019178,2]
[389641711,1759764640986,-500.0,0.00019178,2]
[389641713,1759764640994,-842.99,0.00019178,2]
[389641715,1759764641003,-500.0,0.00019178,2]
[389641716,1759764641012,-1013.63,0.00019178,2]
[389641719,1759764641022,-500.0,0.00019178,2]
[389641721,1759764641033,-500.0,0.00019178,2]
[389641722,1759764641042,-1600.74,0.00019178,2]
[389641724,1759764641051,-500.0,0.00019178,2]
[389641726,1759764641059,-1101.83,0.00019178,2]
[389641728,1759764641068,-1374.96,0.00019178,2]
[389641730,1759764641077,-500.0,0.00019178,2]
[389641732,1759764641087,-509.09842155,0.00019178,2]
[389641734,1759764641096,-500.0,0.00019178,2]
[389641736,1759764641106,-500.0,0.00019178,2]
[389641738,1759764641116,-830.15,0.00019178,2]
[389641740,1759764641125,-500.0,0.00019178,2]
[389641742,1759764641135,-500.0,0.00019178,2]
[389641744,1759764641144,-463.0669809,0.00019178,2]
[389641746,1759764641154,-500.0,0.00019178,2]
[389641749,1759764641163,-445.50378668,0.00019178,2]
[389641750,1759764641172,-500.0,0.00019178,2]
[389641752,1759764641181,-2147.46,0.00019178,2]
[389641754,1759764641190,-500.0,0.00019178,2]
[389641756,1759764641200,-500.0,0.00019178,2]
[389641758,1759764641209,-500.0,0.00019178,2]
[389641760,1759764641218,-500.0,0.00019178,2]
[389641762,1759764641227,-500.0,0.00019178,2]
[389641764,1759764641236,-727.04,0.00019178,2]
[389641766,1759764641249,-151.0,0.00019178,2]
[389641768,1759764641257,-151.0,0.00019178,2]
[389641770,1759764641266,-151.0,0.00019178,2]
[389641772,1759764641275,-500.0,0.00019178,2]
[389641774,1759764641285,-354.05513224,0.00019178,2]
[389641776,1759764641293,-500.0,0.00019178,2]
[389641778,1759764641304,-708.39,0.00019178,2]
[389641780,1759764641313,-500.0,0.00019178,2]
[389641782,1759764641322,-682.01,0.00019178,2]
[389641784,1759764641331,-318.42721548,0.00019178,2]
[389641787,1759764641341,-500.0,0.00019178,2]
[389641789,1759764641350,-500.0,0.00019178,2]
[389641791,1759764641359,-1438.36,0.00019178,2]
[389641793,1759764641368,-480.0,0.00019178,2]
[389641795,1759764641377,-663.27,0.00019178,2]
[389641796,1759764641387,-500.0,0.00019178,2]
[389641798,1759764641396,-12382.77,0.00019178,2]
[389641800,1759764641406,-500.0,0.00019178,2]
[389641802,1759764641415,-500.0,0.00019178,2]
[389641804,1759764641424,-524.04506377,0.00019178,2]
[389641806,1759764641433,-382.14390862,0.00019178,2]
[389641808,1759764641442,-500.0,0.00019178,2]
[389641810,1759764641453,-500.0,0.00019178,2]
[389641812,1759764641462,-500.0,0.00019178,2]
[389641815,1759764641471,-1034.47,0.00019178,2]
[389641816,1759764641480,-480.0,0.00019178,2]
[389641818,1759764641490,-617.44,0.00019178,2]
[389641820,1759764641499,-480.0,0.00019178,2]
[389641822,1759764641508,-500.0,0.00019178,2]
[389641824,1759764641518,-723.21,0.00019178,2]
[389641827,1759764641527,-500.0,0.00019178,2]
[389641829,1759764641536,-500.0,0.00019178,2]
[389641831,1759764641545,-500.0,0.00019178,2]
[389641832,1759764641554,-668.47,0.00019178,2]
[389641835,1759764641563,-167.0,0.00019178,2]
[389641836,1759764641572,-481.74884647,0.00019178,2]
[389641839,1759764641582,-500.0,0.00019178,2]
[389641840,1759764641591,-734.9702786,0.00019352,2]
[389641843,1759764641601,-10692.02025363,0.00019352,2]
[389641845,1759764641610,-500.0,0.00019452,2]
[389641847,1759764641619,-500.0,0.00019452,2]
[389641849,1759764641628,-517.76,0.00019452,2]
[389641850,1759764641637,-500.0,0.00019452,2]
[389641853,1759764641647,-403.98487139,0.00019452,2]
[389641855,1759764641656,-500.0,0.00019452,2]
[389641857,1759764641666,-471.6508681,0.00019452,2]
[389641859,1759764641680,-500.0,0.00019452,2]
[389641861,1759764641689,-623.03,0.00019452,2]
[389641863,1759764641700,-500.0,0.00019452,2]
[389641865,1759764641711,-500.0,0.00019452,2]
[389641867,1759764641724,-500.0,0.00019452,2]
[389641869,1759764641742,-500.0,0.00019452,2]
[389641871,1759764641753,-500.0,0.00019452,2]
[389641873,1759764641767,-500.0,0.00019452,2]
[389641875,1759764641781,-422.4543163,0.00019452,2]
[389641877,1759764641791,-500.0,0.00019452,2]
[389641879,1759764641800,-500.0,0.00019452,2]
[389641881,1759764641809,-500.0,0.00019452,2]
[389641883,1759764641818,-318.32917805,0.00019452,2]
[389641885,1759764641827,-500.0,0.00019452,2]
[389641887,1759764641836,-500.0,0.00019452,2]
[389641889,1759764641845,-500.0,0.00019452,2]
[389641891,1759764641855,-500.0,0.00019452,2]
[389641893,1759764641864,-442.85681031,0.00019452,2]
[389641895,1759764641873,-500.0,0.00019452,2]
[389641897,1759764641882,-1847.33,0.00019452,2]
[389641899,1759764641892,-500.0,0.00019452,2]
[389641901,1759764641901,-500.0,0.00019452,2]
[389641903,1759764641917,-500.0,0.00019452,2]
[389641905,1759764641928,-500.0,0.00019452,2]
[389641908,1759764641938,-500.0,0.00019452,2]
[389641909,1759764641949,-500.0,0.00019452,2]
[389641911,1759764641958,-500.0,0.00019452,2]
[389641913,1759764641967,-500.0,0.00019452,2]
[389641915,1759764641977,-500.0,0.00019452,2]
[389641918,1759764641987,-500.0,0.00019452,2]
[389641920,1759764641996,-500.0,0.00019452,2]
[389641922,1759764642005,-500.0,0.00019452,2]
[389641923,1759764642015,-500.0,0.00019452,2]
[389641925,1759764642024,-500.0,0.00019452,2]
[389641927,1759764642034,-500.0,0.00019452,2]
[389641929,1759764642043,-500.0,0.00019452,2]
[389641931,1759764642057,-500.0,0.00019452,2]
[389641933,1759764642066,-538.55,0.00019452,2]
[389641935,1759764642076,-500.0,0.00019452,2]
[389641937,1759764642084,-409.84629921,0.00019452,2]
[389641939,1759764642094,-440.0,0.00019452,2]
[389641941,1759764642103,-916.84,0.00019452,2]
[389641943,1759764642113,-500.0,0.00019452,2]
[389641945,1759764642123,-151.0,0.00019452,5]
[389641948,1759764642132,-718.32,0.00019452,2]
[389641950,1759764642141,-511.40421344,0.00019452,2]
[389641951,1759764642150,-500.0,0.00019452,2]
[389641954,1759764642160,-500.0,0.00019452,2]
[389641955,1759764642170,-500.0,0.00019452,2]
[389641958,1759764642179,-500.0,0.00019452,2]
[389641959,1759764642189,-500.0,0.00019452,2]
[389641961,1759764642200,-500.0,0.00019452,2]
[389641964,1759764642210,-460.0,0.00019452,2]
[389641966,1759764642220,-518.29551126,0.00019452,2]
[389641968,1759764642230,-500.0,0.00019452,2]
[389641970,1759764642245,-183.87472264,0.00019452,2]
[389641971,1759764642255,-500.0,0.00019452,2]
[389641973,1759764642265,-500.0,0.00019452,2]
[389641976,1759764642274,-501.16,0.00019452,2]
[389641977,1759764642285,-500.0,0.00019452,2]
[389641980,1759764642295,-609.31,0.00019452,2]
[389641981,1759764642304,-500.0,0.00019452,2]
[389641983,1759764642315,-500.0,0.00019452,2]
[389641985,1759764642324,-480.0,0.00019452,2]
[389641987,1759764642334,-481.42,0.00019452,2]
[389641990,1759764642343,-500.0,0.00019452,2]
[389641992,1759764642352,-151.0,0.00019452,2]
[389641993,1759764642361,-151.0,0.00019452,2]
[389641995,1759764642370,-151.0,0.00019452,2]
[389641997,1759764642380,-854.27,0.00019452,2]
[389642000,1759764642389,-500.0,0.00019452,2]
[389642001,1759764642398,-500.0,0.00019452,2]
[389642003,1759764642408,-500.0,0.00019452,2]
[389642005,1759764642417,-500.0,0.00019452,2]
[389642007,1759764642426,-1426.89,0.00019452,2]
[389642009,1759764642435,-500.0,0.00019452,2]
[389642011,1759764642444,-500.0,0.00019452,2]
[389642013,1759764642455,-500.0,0.00019452,2]
[389642015,1759764642464,-500.0,0.00019452,2]
[389642017,1759764642473,-4976.0,0.00019452,2]
[389642019,1759764642483,-507.39,0.00019452,2]
[389642021,1759764642492,-531.06,0.00019452,2]
[389642023,1759764642502,-611.0,0.00019452,2]
[389642025,1759764642511,-500.0,0.00019452,2]
[389642027,1759764642521,-500.0,0.00019452,2]
[389642029,1759764642530,-151.0,0.00019452,2]
[389642031,1759764642539,-500.0,0.00019452,2]
[389642033,1759764642549,-526.87997074,0.00019452,2]
[389642035,1759764642559,-500.0,0.00019452,2]
[389642037,1759764642568,-10915.76540981,0.00019452,2]
[389642078,1759764642930,-2275.94459019,0.00019452,2]
[389642081,1759764642939,-500.0,0.00019452,2]
[389642083,1759764642951,-420.0,0.00019452,2]
[389642085,1759764642960,-360.65540981,0.00019452,2]
[389642087,1759764642972,-139.34459019,0.00019452,2]
[389642089,1759764642981,-500.0,0.00019452,2]
[389642091,1759764642991,-1931.00190355,0.00019452,2]
[389642095,1759764643007,-255.63809645,0.00019452,2]
[389642098,1759764643017,-151.0,0.00019452,2]
[389642101,1759764643027,-120.78517196,0.00019452,2]
[389643953,1759764663789,-1670.06,0.00019178,2]
[389643955,1759764663799,-379.21482804,0.00019452,2]
[389643957,1759764663808,-500.0,0.00019452,2]
[389643959,1759764663818,-500.0,0.00019452,2]
[389643961,1759764663828,-500.0,0.00019452,2]
[389643963,1759764663837,-7743.26,0.00019452,2]
[389643965,1759764663847,-500.0,0.00019452,2]
[389643967,1759764663856,-4255.53,0.00019452,2]
[389643969,1759764663867,-500.0,0.00019452,2]
[389643971,1759764663876,-500.0,0.00019452,2]
[389643973,1759764663886,-1394.54,0.00019452,2]
[389643975,1759764663895,-500.0,0.00019452,2]
[389643977,1759764663905,-500.0,0.00019452,2]
[389643978,1759764663914,-500.0,0.00019452,2]
[389643981,1759764663933,-500.0,0.00019452,2]
[389643995,1759764664073,-500.0,0.00019452,2]
[389643997,1759764664084,-151.0,0.00019452,2]
[389643999,1759764664094,-500.0,0.00019452,2]
[389644001,1759764664104,-190.82305281,0.00019452,2]
[389644003,1759764664114,-500.0,0.00019452,2]
[389644005,1759764664124,-500.0,0.00019452,2]
[389644006,1759764664133,-467.22395915,0.00019452,2]
[389644009,1759764664145,-38.91604085,0.00019452,2]
[389644011,1759764664155,-500.0,0.00019452,2]
[389644013,1759764664166,-283.2370555,0.00019452,2]
[389644015,1759764664175,-848.96200366,0.00019452,2]
[389644153,1759764666235,168.26353408,0.00025,30]
[389644265,1759764704813,160.02641559,0.00025,45]
[389644326,1759764958908,2232.57380446,0.0002012,9]
[389644334,1759765084785,2000.0,0.00028767,120]
[389644337,1759765115955,2000.0,0.00028767,120]
[389644338,1759765143164,1000.0,0.00028767,120]
[389644339,1759765151740,1000.0,0.00028767,120]
[389644352,1759765483354,652.01,0.000261,120]
[389644354,1759765632506,1573.23753244,0.0002012,9]
[389644943,1759765841020,-160.0,0.0001786,2]
[389644945,1759765841030,-160.0,0.0001804,2]
[389644947,1759765841040,-160.0,0.00018218,2]
[389644949,1759765841050,-160.0,0.00018219,2]
[389644951,1759765841059,-25.69475087,0.00018227,2]
[389645052,1759765843801,-974.30524913,0.00018227,2]
[389645054,1759765843812,-500.0,0.000183,2]
[389645056,1759765843821,-492.31337396,0.00019078,2]
[389645059,1759765843831,-160.0,0.00019095,2]
[389645061,1759765843840,-348.6310564,0.00019137,2]
[389645063,1759765843849,-293.86,0.00019168,3]
[389645064,1759765843858,-244.88,0.00019168,3]
[389645066,1759765843867,-734.68,0.00019168,3]
[389645068,1759765843876,-300.0,0.00019176,2]
[389645070,1759765843886,-155.0,0.00019177,2]
[389645072,1759765843895,-779.0,0.00019177,2]
[389645074,1759765843904,-226.57714164,0.00019177,2]
[389645076,1759765843914,-500.0,0.00019178,2]
[389645079,1759765843923,-500.0,0.00019178,2]
[389645080,1759765843933,-500.0,0.00019178,2]
[389645082,1759765843942,-500.0,0.00019178,2]
[389645084,1759765843951,-215.09022303,0.00019178,2]
[389645086,1759765843961,-312.89919218,0.00019178,2]
[389645188,1759765845488,-187.10080782,0.00019178,2]
[389645189,1759765845498,-500.0,0.00019178,2]
[389645190,1759765845509,-440.0,0.00019178,2]
[389645191,1759765845519,-500.0,0.00019178,2]
[389645192,1759765845528,-500.0,0.00019178,2]
[389645193,1759765845537,-443.30968884,0.00019178,2]
[389645194,1759765845546,-500.0,0.00019178,2]
[389645195,1759765845555,-520.0,0.00019178,3]
[389645196,1759765845564,-500.0,0.00019178,2]
[389645197,1759765845575,-500.0,0.00019178,2]
[389645198,1759765845590,-500.0,0.00019178,2]
[389645199,1759765845600,-500.0,0.00019178,2]
[389645200,1759765845609,-500.0,0.00019178,2]
[389645201,1759765845619,-500.0,0.00019178,2]
[389645202,1759765845628,-500.0,0.00019178,2]
[389645203,1759765845637,-500.0,0.00019178,2]
[389645204,1759765845647,-500.0,0.00019178,2]
[389645205,1759765845656,-500.0,0.00019178,2]
[389645206,1759765845665,-500.0,0.00019178,2]
[389645207,1759765845675,-500.0,0.00019178,2]
[389645208,1759765845684,-500.0,0.00019178,2]
[389645209,1759765845693,-500.0,0.00019178,2]
[389645210,1759765845702,-500.0,0.00019178,2]
[389645211,1759765845712,-500.0,0.00019178,2]
[389645212,1759765845721,-500.0,0.00019178,2]
[389645213,1759765845730,-658.46,0.00019178,2]
[389645214,1759765845739,-500.0,0.00019178,2]
[389645215,1759765845749,-500.0,0.00019178,2]
[389645216,1759765845759,-500.0,0.00019178,2]
[389645217,1759765845768,-326.32388378,0.00019178,2]
[389645218,1759765845778,-460.0,0.00019178,2]
[389645219,1759765845788,-558.54,0.00019178,2]
[389645220,1759765845797,-500.0,0.00019178,2]
[389645221,1759765845806,-500.0,0.00019178,2]
[389645222,1759765845815,-488.79100787,0.00019178,2]
[389645223,1759765845825,-783.08,0.00019178,2]
[389645224,1759765845835,-500.0,0.00019178,2]
[389645225,1759765845844,-500.0,0.00019178,2]
[389645226,1759765845853,-500.0,0.00019178,2]
[389645227,1759765845862,-500.0,0.00019178,2]
[389645228,1759765845872,-500.0,0.00019178,2]
[389645229,1759765845882,-500.0,0.00019178,2]
[389645230,1759765845891,-500.0,0.00019178,2]
[389645231,1759765845900,-500.0,0.00019178,2]
[389645232,1759765845909,-500.0,0.00019178,2]
[389645233,1759765845919,-500.0,0.00019178,2]
[389645234,1759765845929,-500.0,0.00019178,2]
[389645235,1759765845939,-1693.39,0.00019178,2]
[389645236,1759765845948,-560.08,0.00019178,2]
[389645237,1759765845957,-500.0,0.00019178,2]
[389645238,1759765845966,-500.0,0.00019178,2]
[389645239,1759765845975,-500.0,0.00019178,2]
[389645240,1759765845984,-500.0,0.00019178,2]
[389645241,1759765845994,-500.0,0.00019178,2]
[389645242,1759765846003,-500.0,0.00019178,2]
[389645243,1759765846013,-500.0,0.00019178,2]
[389645244,1759765846023,-500.0,0.00019178,2]
[389645245,1759765846033,-271.89042409,0.00019178,2]
[389645246,1759765846043,-500.0,0.00019178,2]
[389645247,1759765846052,-500.0,0.00019178,2]
[389645248,1759765846062,-500.0,0.00019178,2]
[389645249,1759765846071,-500.0,0.00019178,2]
[389645250,1759765846081,-500.0,0.00019178,2]
[389645251,1759765846091,-500.0,0.00019178,2]
[389645252,1759765846101,-500.0,0.00019178,2]
[389645253,1759765846110,-440.0,0.00019178,2]
[389645254,1759765846120,-500.0,0.00019178,2]
[389645255,1759765846129,-500.0,0.00019178,2]
[389645256,1759765846138,-245.36039889,0.00019178,2]
[389645257,1759765846149,-500.0,0.00019178,2]
[389645258,1759765846158,-500.0,0.00019178,2]
[389645260,1759765846167,-500.0,0.00019178,2]
[389645262,1759765846176,-500.0,0.00019178,2]
[389645264,1759765846185,-500.0,0.00019178,2]
[389645265,1759765846195,-500.0,0.00019178,2]
[389645266,1759765846204,-500.0,0.00019178,2]
[389645267,1759765846216,-500.0,0.00019178,2]
[389645268,1759765846226,-500.0,0.00019178,2]
[389645269,1759765846236,-500.0,0.00019178,2]
[389645270,1759765846247,-500.0,0.00019178,2]
[389645271,1759765846256,-420.0,0.00019178,2]
[389645272,1759765846268,-840.44,0.00019178,2]
[389645273,1759765846278,-500.0,0.00019178,2]
[389645274,1759765846287,-500.0,0.00019178,2]
[389645275,1759765846297,-500.0,0.00019178,2]
[389645276,1759765846307,-705.96,0.00019178,2]
[389645278,1759765846317,-500.0,0.00019178,2]
[389645281,1759765846326,-500.0,0.00019178,2]
[389645284,1759765846335,-420.0,0.00019178,2]
[389645286,1759765846344,-500.0,0.00019178,2]
[389645289,1759765846353,-357.93301699,0.00019178,2]
[389645291,1759765846362,-500.0,0.00019178,2]
[389645292,1759765846372,-500.0,0.00019178,2]
[389645293,1759765846382,-500.0,0.00019178,2]
[389645294,1759765846391,-500.0,0.00019178,2]
[389645295,1759765846400,-500.0,0.00019178,2]
[389645296,1759765846409,-500.0,0.00019178,2]
[389645297,1759765846419,-500.0,0.00019178,2]
[389645299,1759765846428,-500.0,0.00019178,2]
[389645301,1759765846437,-500.0,0.00019178,2]
[389645303,1759765846447,-500.0,0.00019178,2]
[389645305,1759765846456,-440.0,0.00019178,2]
[389645306,1759765846465,-500.0,0.00019178,2]
[389645308,1759765846474,-500.0,0.00019178,2]
[389645310,1759765846483,-500.0,0.00019178,2]
[389645312,1759765846492,-500.0,0.00019178,2]
[389645314,1759765846501,-500.0,0.00019178,2]
[389645316,1759765846510,-500.0,0.00019178,2]
[389645318,1759765846521,-500.0,0.00019178,2]
[389645320,1759765846531,-500.0,0.00019178,2]
[389645322,1759765846540,-500.0,0.00019178,2]
[389645324,1759765846549,-440.0,0.00019178,2]
[389645326,1759765846559,-500.0,0.00019178,2]
[389645327,1759765846569,-500.0,0.00019178,2]
[389645329,1759765846582,-500.0,0.00019178,2]
[389645331,1759765846591,-500.0,0.00019178,2]
[389645333,1759765846601,-500.0,0.00019178,2]
[389645335,1759765846610,-500.0,0.00019178,2]
[389645337,1759765846622,-1181.66,0.00019178,2]
[389645339,1759765846631,-500.0,0.00019178,2]
[389645341,1759765846640,-500.0,0.00019178,2]
[389645343,1759765846649,-500.0,0.00019178,2]
[389645345,1759765846662,-500.0,0.00019178,2]
[389645347,1759765846671,-500.0,0.00019178,2]
[389645349,1759765846681,-500.0,0.00019178,2]
[389645351,1759765846690,-500.0,0.00019178,2]
[389645353,1759765846699,-483.25010321,0.00019178,2]
[389645355,1759765846709,-626.70942384,0.00019178,2]
[389645357,1759765846719,-373.07047457,0.00019178,2]
[389645359,1759765846728,-500.0,0.00019178,2]
[389645361,1759765846737,-500.0,0.00019178,2]
[389645362,1759765846747,-500.0,0.00019178,2]
[389645364,1759765846756,-500.0,0.00019178,2]
[389645366,1759765846765,-368.86269527,0.00019178,2]
[389645368,1759765846776,-500.0,0.00019178,2]
[389645370,1759765846786,-500.0,0.00019178,2]
[389645372,1759765846795,-500.0,0.00019178,2]
[389645374,1759765846804,-500.0,0.00019178,2]
[389645376,1759765846813,-441.75197854,0.00019178,2]
[389645378,1759765846823,-500.0,0.00019178,2]
[389645380,1759765846832,-500.0,0.00019178,2]
[389645382,1759765846841,-500.0,0.00019178,2]
[389645384,1759765846850,-500.0,0.00019178,2]
[389645386,1759765846860,-500.0,0.00019178,2]